{"text_format":"1","workbook":"xlsx","n_sheets":1,"sheets":["Tabelle1"],"not_rendered":{"charts":0,"images":0,"macros":1,"external_links":0,"defined_names":0,"comments":0,"pivot_tables":0},"unopened":[],"bounds":{"document_bytes":16777216,"sheet_cells":100000,"rows_first":2000,"rows_last":500,"rows_between":2000,"halvings":0,"cell_chars":16384,"cell_head_chars":4096},"cells_cut":0,"cells_raw":0,"read":"whole","date_system":"1900"}

{"sheet":"Tabelle1","index":0,"n_rows":40,"n_cols":14,"rows_kept":40,"cut":false,"hidden":false,"merged":[]}
["Name",null,null,null,null,null,null,null,null,null,null,null,"with formula","See Conditional formatting for zero"]
["Mustermann 1",null,null,null,null,null,null,null,null,null,null,null,{"$f":"INDEX(A1:A40,  RANDBETWEEN(1,40))","v":"Max 5"}]
["Mustermann 2",null,null,null,null,null,null,null,null,null,null,null,{"$f":"INDEX(A2:A41,  RANDBETWEEN(1,40))","v":"Max 9"}]
["Mustermann 3",null,"Winner",null,null,null,null,null,null,null,null,null,"Max 13"]
["Mustermann 4",null,"Max 7",null,null,null,null,null,null,null,null,null,0]
["Mustermann 5",null,"Mustermann 6",null,null,null,null,null,null,null,null,null,"Max 21"]
["Mustermann 6",null,"Mustermann 3",null,null,null,null,null,null,null,null,null,"Mustermann 5"]
["Mustermann 7",null,"Mustermann 11",null,null,null,null,null,null,null,null,null,0]
["Mustermann 8",null,"Max 4",null,null,null,null,null,null,null,null,null,0]
["Mustermann 9",null,"Max 6",null,null,null,null,null,null,null,null,null,"Max 17"]
["Mustermann 10",null,null,null,null,null,null,null,null,null,null,null,"Max 15"]
["Mustermann 11",null,null,null,null,null,null,null,null,null,null,null,"Max 16"]
["Mustermann 12",null,null,null,null,null,null,null,null,null,null,null,"Max 23"]
["Max 1",null,null,null,null,null,null,null,null,null,null,null,0]
["Max 2",null,null,null,null,null,null,null,null,null,null,null,"Max 5"]
["Max 3",null,null,null,null,null,null,null,null,null,null,null,"Max 21"]
["Max 4",null,null,null,null,null,null,null,null,null,null,null,0]
["Max 5",null,null,null,null,null,null,null,null,null,null,null,"Max 11"]
["Max 6",null,null,null,null,null,null,null,null,null,null,null,"Max 16"]
["Max 7",null,null,null,null,null,null,null,null,null,null,null,"Max 18"]
["Max 8",null,null,null,null,null,null,null,null,null,null,null,"Max 16"]
["Max 9",null,null,null,null,null,null,null,null,null,null,null,0]
["Max 10",null,null,null,null,null,null,null,null,null,null,null,0]
["Max 11",null,null,null,null,null,null,null,null,null,null,null,"Max 20"]
["Max 12",null,null,null,null,null,null,null,null,null,null,null,0]
["Max 13",null,null,null,null,null,null,null,null,null,null,null,"Max 17"]
["Max 14",null,null,null,null,null,null,null,null,null,null,null,0]
["Max 15",null,null,null,null,null,null,null,null,null,null,null,0]
["Max 16",null,null,null,null,null,null,null,null,null,null,null,"Max 22"]
["Max 17",null,null,null,null,null,null,null,null,null,null,null,0]
["Max 18",null,null,null,null,null,null,null,null,null,null,null,"Max 19"]
["Max 19",null,null,null,null,null,null,null,null,null,null,null,0]
["Max 20",null,null,null,null,null,null,null,null,null,null,null,"Max 25"]
["Max 21",null,null,null,null,null,null,null,null,null,null,null,0]
["Max 22",null,null,null,null,null,null,null,null,null,null,null,0]
["Max 23",null,null,null,null,null,null,null,null,null,null,null,0]
["Max 24",null,null,null,null,null,null,null,null,null,null,null,0]
["Max 25",null,null,null,null,null,null,null,null,null,null,null,0]
["Max 26",null,null,null,null,null,null,null,null,null,null,null,0]
["Max 27",null,null,null,null,null,null,null,null,null,null,null,0]